[Event "*** SCC Grand Prix: Titled Tuesday Blitz"]
[Site "Chess.com"]
[Date "2020.08.04"]
[Round "1"]
[White "BulletMercenary"]
[Black "AnonymousBread"]
[Result "1-0"]
[WhiteElo "2157"]
[BlackElo "2526"]
[TimeControl "180+1"]
[EndTime "13:53:24 PDT"]
[Termination "BulletMercenary won by resignation"]

1. e4 {[%clk 0:02:43.5]} 1... e5 {[%clk 0:02:57.5]} 2. Nf3 {[%clk 0:02:43.1]}
2... Nc6 {[%clk 0:02:57.2]} 3. d4 {[%clk 0:02:43.5]} 3... exd4 {[%clk
0:02:58.1]} 4. Nxd4 {[%clk 0:02:43.7]} 4... Nf6 {[%clk 0:02:58.8]} 5. Nc3 {[%clk
0:02:43.9]} 5... Bb4 {[%clk 0:02:58.6]} 6. Nxc6 {[%clk 0:02:44.2]} 6... bxc6
{[%clk 0:02:59.5]} 7. Bd3 {[%clk 0:02:44.7]} 7... d5 {[%clk 0:02:59.5]} 8. exd5
{[%clk 0:02:44.4]} 8... cxd5 {[%clk 0:03:00.4]} 9. O-O {[%clk 0:02:44.8]} 9...
O-O {[%clk 0:03:01.1]} 10. Bg5 {[%clk 0:02:45]} 10... c6 {[%clk 0:03:01.2]} 11.
Qf3 {[%clk 0:02:44.4]} 11... Bd6 {[%clk 0:03:01.4]} 12. Bxf6 {[%clk 0:02:44]}
12... Qxf6 {[%clk 0:03:02.3]} 13. Qxf6 {[%clk 0:02:44.1]} 13... gxf6 {[%clk
0:03:03.2]} 14. Na4 {[%clk 0:02:44.6]} 14... Bd7 {[%clk 0:02:52.4]} 15. Rad1
{[%clk 0:02:21.4]} 15... Rfe8 {[%clk 0:02:50.1]} 16. b3 {[%clk 0:02:19]} 16...
Re5 {[%clk 0:02:45.3]} 17. f4 {[%clk 0:02:16.3]} 17... Re3 {[%clk 0:02:44.8]}
18. g3 {[%clk 0:01:57]} 18... Rae8 {[%clk 0:02:42.2]} 19. Kf2 {[%clk 0:01:56.3]}
19... c5 {[%clk 0:01:27.9]} 20. Nc3 {[%clk 0:01:54.4]} 20... Bc6 {[%clk
0:01:21.5]} 21. Rfe1 {[%clk 0:01:51.7]} 21... d4 {[%clk 0:01:21.6]} 22. Rxe3
{[%clk 0:01:48.8]} 22... Rxe3 {[%clk 0:01:20.8]} 23. Nb1 {[%clk 0:01:39.5]}
23... h5 {[%clk 0:01:09.6]} 24. Nd2 {[%clk 0:01:36.2]} 24... h4 {[%clk 0:01:08]}
25. Re1 {[%clk 0:01:32.6]} 25... Rxe1 {[%clk 0:00:59.1]} 26. Kxe1 {[%clk
0:01:31.3]} 26... Kf8 {[%clk 0:00:55.1]} 27. Be4 {[%clk 0:01:25]} 27... Bb5
{[%clk 0:00:47.2]} 28. a4 {[%clk 0:01:19.3]} 28... Ba6 {[%clk 0:00:44.8]} 29.
Bd3 {[%clk 0:01:18.7]} 29... Bb7 {[%clk 0:00:42.5]} 30. Be4 {[%clk 0:01:18.8]}
30... Bc8 {[%clk 0:00:42.1]} 31. Kf2 {[%clk 0:01:16.5]} 31... Ke7 {[%clk
0:00:41.3]} 32. Kf3 {[%clk 0:01:15]} 32... hxg3 {[%clk 0:00:35.8]} 33. hxg3
{[%clk 0:01:15.9]} 33... Bc7 {[%clk 0:00:33.4]} 34. Bd5 {[%clk 0:01:07.4]} 34...
Be6 {[%clk 0:00:30.5]} 35. Bb7 {[%clk 0:00:47.9]} 35... f5 {[%clk 0:00:27.8]}
36. Ke2 {[%clk 0:00:29.4]} 36... Kd6 {[%clk 0:00:25]} 37. Kd3 {[%clk 0:00:29.1]}
37... Bb6 {[%clk 0:00:18.4]} 38. Nc4+ {[%clk 0:00:24.7]} 38... Kc7 {[%clk
0:00:18.8]} 39. Bf3 {[%clk 0:00:24.4]} 39... Kd7 {[%clk 0:00:17.4]} 40. Ne5+
{[%clk 0:00:18.6]} 40... Kd6 {[%clk 0:00:17.4]} 41. Nc4+ {[%clk 0:00:19.1]}
41... Ke7 {[%clk 0:00:16.2]} 42. Ne5 {[%clk 0:00:19.2]} 42... Bc7 {[%clk
0:00:13.8]} 43. Nc6+ {[%clk 0:00:19.2]} 43... Kd6 {[%clk 0:00:14]} 44. Nxa7
{[%clk 0:00:19.9]} 44... Ba5 {[%clk 0:00:11.3]} 45. Nb5+ {[%clk 0:00:19.8]}
45... Ke7 {[%clk 0:00:11.5]} 46. Ke2 {[%clk 0:00:13.7]} 46... Kd8 {[%clk
0:00:10.5]} 47. Nd6 {[%clk 0:00:11.2]} 47... Kc7 {[%clk 0:00:08.3]} 48. Nc4
{[%clk 0:00:07.6]} 48... Bc3 {[%clk 0:00:08.5]} 49. Ne5 {[%clk 0:00:06.7]} 49...
Kb6 {[%clk 0:00:06.9]} 50. Kd3 {[%clk 0:00:04.2]} 50... Be1 {[%clk 0:00:05.9]}
51. g4 {[%clk 0:00:04.4]} 51... fxg4 {[%clk 0:00:05.8]} 52. Bxg4 {[%clk
0:00:05]} 52... f5 {[%clk 0:00:04.6]} 53. Bf3 {[%clk 0:00:04.9]} 53... Bg3
{[%clk 0:00:05.1]} 54. Ng6 {[%clk 0:00:03.9]} 54... Bc8 {[%clk 0:00:05.1]} 55.
Ne7 {[%clk 0:00:03.4]} 55... Ba6+ {[%clk 0:00:05.1]} 56. c4 {[%clk 0:00:01.8]}
56... dxc3+ {[%clk 0:00:01.9]} 57. Kxc3 {[%clk 0:00:01.8]} 57... Bxf4 {[%clk
0:00:02.8]} 58. Nd5+ {[%clk 0:00:02.4]} 58... Ka5 {[%clk 0:00:02.7]} 59. Nxf4
{[%clk 0:00:03.3]} 59... Kb6 {[%clk 0:00:03.1]} 60. Nd5+ {[%clk 0:00:03.9]}
60... Ka7 {[%clk 0:00:02.1]} 61. Ne3 {[%clk 0:00:04.8]} 61... Bc8 {[%clk
0:00:02.5]} 62. Nc4 {[%clk 0:00:04.1]} 62... Bd7 {[%clk 0:00:03]} 63. Bd5 {[%clk
0:00:04.3]} 63... Kb8 {[%clk 0:00:03.7]} 64. Ne5 {[%clk 0:00:04.6]} 64... f4
{[%clk 0:00:04.4]} 65. Nxd7+ {[%clk 0:00:04.7]} 65... Kc7 {[%clk 0:00:05.3]} 66.
Nxc5 {[%clk 0:00:05.3]} 66... Kd6 {[%clk 0:00:06.2]} 67. Bf3 {[%clk 0:00:05.5]}
67... Kxc5 {[%clk 0:00:06.6]} 68. b4+ {[%clk 0:00:06.4]} 68... Kb6 {[%clk
0:00:07.1]} 69. a5+ {[%clk 0:00:07.1]} 69... Ka7 {[%clk 0:00:08]} 70. Kc4 {[%clk
0:00:07.6]} 70... Kb8 {[%clk 0:00:08.9]} 71. b5 {[%clk 0:00:08]} 1-0

[Event "*** SCC Grand Prix: Titled Tuesday Blitz"]
[Site "Chess.com"]
[Date "2020.08.04"]
[Round "1"]
[White "Artur0208"]
[Black "AndrewDGreen"]
[Result "1-0"]
[WhiteElo "2776"]
[BlackElo "2394"]
[TimeControl "180+1"]
[EndTime "13:53:28 PDT"]
[Termination "Artur0208 won by resignation"]

1. d4 {[%clk 0:02:40.8]} 1... Nf6 {[%clk 0:02:59.3]} 2. Nf3 {[%clk 0:02:41.7]}
2... g6 {[%clk 0:02:59.7]} 3. c4 {[%clk 0:02:42.2]} 3... Bg7 {[%clk 0:02:59.7]}
4. Nc3 {[%clk 0:02:42.9]} 4... O-O {[%clk 0:02:59.7]} 5. e4 {[%clk 0:02:43.4]}
5... d6 {[%clk 0:02:59.7]} 6. Be2 {[%clk 0:02:44.1]} 6... Bg4 {[%clk 0:02:59.8]}
7. O-O {[%clk 0:02:42.7]} 7... Nfd7 {[%clk 0:02:59.9]} 8. Be3 {[%clk 0:02:43.6]}
8... Nc6 {[%clk 0:02:59.6]} 9. d5 {[%clk 0:02:43]} 9... Bxf3 {[%clk 0:02:55.4]}
10. Bxf3 {[%clk 0:02:43.9]} 10... Na5 {[%clk 0:02:52.8]} 11. Be2 {[%clk
0:02:42.5]} 11... Bxc3 {[%clk 0:02:52.2]} 12. bxc3 {[%clk 0:02:43.4]} 12... e5
{[%clk 0:02:50.3]} 13. dxe6 {[%clk 0:02:35.2]} 13... fxe6 {[%clk 0:02:49.9]} 14.
f4 {[%clk 0:02:32.2]} 14... Qe7 {[%clk 0:02:25.7]} 15. Kh1 {[%clk 0:02:27.5]}
15... b6 {[%clk 0:02:12.5]} 16. Qc2 {[%clk 0:02:26.7]} 16... Nc5 {[%clk
0:02:05.7]} 17. Rad1 {[%clk 0:02:23.8]} 17... Qe8 {[%clk 0:01:48.6]} 18. Bxc5
{[%clk 0:02:20]} 18... bxc5 {[%clk 0:01:43]} 19. e5 {[%clk 0:02:20.9]} 19... Rd8
{[%clk 0:01:26.9]} 20. exd6 {[%clk 0:02:21.4]} 20... cxd6 {[%clk 0:01:27.8]} 21.
Qe4 {[%clk 0:02:21.9]} 21... Qf7 {[%clk 0:01:22.4]} 22. Bg4 {[%clk 0:02:17.9]}
22... Rfe8 {[%clk 0:01:21.5]} 23. Rfe1 {[%clk 0:02:18.1]} 23... e5 {[%clk
0:01:19.2]} 24. fxe5 {[%clk 0:02:15.6]} 24... Qxc4 {[%clk 0:00:59.5]} 25. Qxc4+
{[%clk 0:01:37.7]} 25... Nxc4 {[%clk 0:01:00.4]} 26. e6 {[%clk 0:01:21.3]} 26...
Ne5 {[%clk 0:00:56.7]} 27. Bh3 {[%clk 0:01:20.2]} 27... Kg7 {[%clk 0:00:51.5]}
28. Re4 {[%clk 0:01:14.1]} 28... c4 {[%clk 0:00:39.1]} 29. g3 {[%clk 0:01:12.3]}
29... g5 {[%clk 0:00:34.1]} 30. Bf5 {[%clk 0:01:11.6]} 30... h5 {[%clk
0:00:21.7]} 31. Red4 {[%clk 0:01:09]} 31... Kf6 {[%clk 0:00:17.9]} 32. Rf1
{[%clk 0:01:04.6]} 32... Re7 {[%clk 0:00:14.9]} 33. h4 {[%clk 0:00:51.7]} 33...
gxh4 {[%clk 0:00:14.6]} 34. Rxh4 {[%clk 0:00:51]} 34... Rh8 {[%clk 0:00:11.8]}
35. Bh3+ {[%clk 0:00:50.6]} 35... Kg5 {[%clk 0:00:09.4]} 36. Kg2 {[%clk
0:00:43.2]} 36... Kg6 {[%clk 0:00:04.5]} 37. Rd4 {[%clk 0:00:43.5]} 37... Rd8
{[%clk 0:00:03]} 38. Re1 {[%clk 0:00:42.4]} 38... Kf6 {[%clk 0:00:03.1]} 39.
Rf4+ {[%clk 0:00:41.1]} 39... Kg6 {[%clk 0:00:03]} 40. Re2 {[%clk 0:00:42]}
40... Kg7 {[%clk 0:00:02.4]} 41. Rd4 {[%clk 0:00:42.4]} 41... Nc6 {[%clk
0:00:01.3]} 42. Rxc4 {[%clk 0:00:42.5]} 42... Ne5 {[%clk 0:00:01.6]} 43. Rd4
{[%clk 0:00:43.2]} 43... Ng6 {[%clk 0:00:02]} 44. Rd5 {[%clk 0:00:43.2]} 44...
Nf8 {[%clk 0:00:02.9]} 45. Rxh5 {[%clk 0:00:42.2]} 45... Ng6 {[%clk 0:00:03.8]}
46. Rg5 {[%clk 0:00:42.3]} 46... Kf6 {[%clk 0:00:04.4]} 47. Rf5+ {[%clk
0:00:42.5]} 47... Kg7 {[%clk 0:00:04.1]} 48. Ref2 {[%clk 0:00:43]} 48... Ne5
{[%clk 0:00:03.9]} 49. Rf6 {[%clk 0:00:42.4]} 49... Rh8 {[%clk 0:00:03]} 50. g4
{[%clk 0:00:42.5]} 50... Rg8 {[%clk 0:00:02.8]} 51. Kg3 {[%clk 0:00:42.1]} 51...
Ng6 {[%clk 0:00:03.1]} 52. g5 {[%clk 0:00:42.2]} 52... Ne5 {[%clk 0:00:02.7]}
53. R2f5 {[%clk 0:00:42.6]} 53... Rc8 {[%clk 0:00:02.3]} 54. Rf2 {[%clk
0:00:35.2]} 54... Rxc3+ {[%clk 0:00:02.5]} 55. Kg2 {[%clk 0:00:36]} 55... Rc4
{[%clk 0:00:03]} 56. Bf5 {[%clk 0:00:35.2]} 56... Rc3 {[%clk 0:00:03.3]} 57. Rh6
{[%clk 0:00:32.9]} 57... a5 {[%clk 0:00:03.4]} 58. Rh7+ {[%clk 0:00:33.4]} 58...
Kf8 {[%clk 0:00:03.6]} 59. Bd3+ {[%clk 0:00:30.2]} 59... Ke8 {[%clk 0:00:03.1]}
60. Bb5+ {[%clk 0:00:30.8]} 60... Kd8 {[%clk 0:00:02.1]} 61. Rf8+ {[%clk
0:00:30.9]} 61... Kc7 {[%clk 0:00:02.4]} 62. Rxe7+ {[%clk 0:00:31.5]} 62... Kb6
{[%clk 0:00:02.3]} 63. Rb8+ {[%clk 0:00:32.1]} 63... Kc5 {[%clk 0:00:02.1]} 64.
Rc7+ {[%clk 0:00:33]} 64... Kb4 {[%clk 0:00:02.4]} 65. Rxc3 {[%clk 0:00:33.9]}
65... Kxc3 {[%clk 0:00:02.7]} 66. e7 {[%clk 0:00:34.8]} 1-0

[Event "*** SCC Grand Prix: Titled Tuesday Blitz"]
[Site "Chess.com"]
[Date "2020.08.04"]
[Round "1"]
[White "1977Ivan"]
[Black "allvim"]
[Result "0-1"]
[WhiteElo "2693"]
[BlackElo "2360"]
[TimeControl "180+1"]
[EndTime "13:53:36 PDT"]
[Termination "allvim won on time"]

1. c4 {[%clk 0:03:00.9]} 1... e5 {[%clk 0:03:00]} 2. Nc3 {[%clk 0:03:00.3]} 2...
Nf6 {[%clk 0:03:00.4]} 3. Nf3 {[%clk 0:03:00.7]} 3... Nc6 {[%clk 0:03:00.2]} 4.
g3 {[%clk 0:03:01.2]} 4... d5 {[%clk 0:03:00.8]} 5. cxd5 {[%clk 0:03:00.4]} 5...
Nxd5 {[%clk 0:03:01.7]} 6. Bg2 {[%clk 0:03:01]} 6... Nb6 {[%clk 0:03:02.2]} 7.
a3 {[%clk 0:02:58.6]} 7... Be6 {[%clk 0:03:02.1]} 8. O-O {[%clk 0:02:46.3]} 8...
Be7 {[%clk 0:03:01.4]} 9. b4 {[%clk 0:02:44.6]} 9... a6 {[%clk 0:03:01.1]} 10.
Bb2 {[%clk 0:02:40.3]} 10... O-O {[%clk 0:03:01.7]} 11. Rc1 {[%clk 0:02:38.8]}
11... Nc4 {[%clk 0:03:01]} 12. Qc2 {[%clk 0:02:29.7]} 12... Nxb2 {[%clk
0:02:58]} 13. Qxb2 {[%clk 0:02:29.2]} 13... f6 {[%clk 0:02:58.9]} 14. e3 {[%clk
0:02:24.6]} 14... Qd7 {[%clk 0:02:52.5]} 15. Ne4 {[%clk 0:02:13.3]} 15... Bh3
{[%clk 0:02:51.8]} 16. Qb3+ {[%clk 0:01:56.6]} 16... Kh8 {[%clk 0:02:48.7]} 17.
Rfd1 {[%clk 0:01:33.1]} 17... Bxg2 {[%clk 0:02:46.9]} 18. Kxg2 {[%clk 0:01:34]}
18... Rad8 {[%clk 0:02:47.2]} 19. d4 {[%clk 0:01:32.3]} 19... exd4 {[%clk
0:02:45.6]} 20. exd4 {[%clk 0:01:30.1]} 20... Qd5 {[%clk 0:02:42.4]} 21. Qxd5
{[%clk 0:01:25.8]} 21... Rxd5 {[%clk 0:02:43.3]} 22. Nc3 {[%clk 0:01:26.2]}
22... Rd7 {[%clk 0:02:41.9]} 23. d5 {[%clk 0:01:27.1]} 23... Ne5 {[%clk
0:02:41.7]} 24. Nxe5 {[%clk 0:01:26]} 24... fxe5 {[%clk 0:02:42.6]} 25. Ne4
{[%clk 0:01:23.9]} 25... Rfd8 {[%clk 0:02:41.4]} 26. Rc3 {[%clk 0:01:16.3]}
26... Kg8 {[%clk 0:02:19.9]} 27. Rcd3 {[%clk 0:01:07.2]} 27... h6 {[%clk
0:02:05.4]} 28. Kf3 {[%clk 0:01:02.4]} 28... Kf7 {[%clk 0:02:04.2]} 29. Nc5
{[%clk 0:01:00.2]} 29... Bxc5 {[%clk 0:01:49.3]} 30. bxc5 {[%clk 0:01:01.1]}
30... b6 {[%clk 0:01:16.7]} 31. c6 {[%clk 0:00:47.6]} 31... Rd6 {[%clk
0:01:16.6]} 32. Ke4 {[%clk 0:00:47.5]} 32... Kf6 {[%clk 0:01:17.3]} 33. Rf3+
{[%clk 0:00:46.5]} 33... Ke7 {[%clk 0:01:08.8]} 34. Rfd3 {[%clk 0:00:42.7]}
34... Kf6 {[%clk 0:01:08.8]} 35. h4 {[%clk 0:00:42.3]} 35... b5 {[%clk
0:01:04.3]} 36. Rc1 {[%clk 0:00:35.4]} 36... a5 {[%clk 0:00:54.4]} 37. Rc5
{[%clk 0:00:34.5]} 37... Rb8 {[%clk 0:00:51.4]} 38. Rf3+ {[%clk 0:00:33.7]}
38... Ke7 {[%clk 0:00:52]} 39. Kxe5 {[%clk 0:00:33.7]} 39... b4 {[%clk
0:00:52.9]} 40. axb4 {[%clk 0:00:31.9]} 40... axb4 {[%clk 0:00:53.8]} 41. Rb3
{[%clk 0:00:31.5]} 41... Rf6 {[%clk 0:00:54.1]} 42. f4 {[%clk 0:00:30.7]} 42...
g6 {[%clk 0:00:51.7]} 43. Rc4 {[%clk 0:00:29.4]} 43... Rf5+ {[%clk 0:00:51.9]}
44. Ke4 {[%clk 0:00:29.4]} 44... Kd6 {[%clk 0:00:52.5]} 45. Rcxb4 {[%clk
0:00:22.1]} 45... Re8+ {[%clk 0:00:47.1]} 46. Kf3 {[%clk 0:00:21.7]} 46... Rxd5
{[%clk 0:00:48]} 47. Rb8 {[%clk 0:00:20]} 47... Rxb8 {[%clk 0:00:46.2]} 48. Rxb8
{[%clk 0:00:20.9]} 48... Kxc6 {[%clk 0:00:46.7]} 49. Rg8 {[%clk 0:00:20]} 49...
Rd6 {[%clk 0:00:46.6]} 50. Rh8 {[%clk 0:00:19.1]} 50... h5 {[%clk 0:00:46.7]}
51. Ke4 {[%clk 0:00:18.7]} 51... Re6+ {[%clk 0:00:41.8]} 52. Kd4 {[%clk
0:00:18.4]} 52... Kd6 {[%clk 0:00:38.9]} 53. Rd8+ {[%clk 0:00:15.5]} 53... Ke7
{[%clk 0:00:38.8]} 54. Rg8 {[%clk 0:00:15.3]} 54... Kd6 {[%clk 0:00:38.8]} 55.
Rg7 {[%clk 0:00:14]} 55... c5+ {[%clk 0:00:38.7]} 56. Kd3 {[%clk 0:00:13.3]}
56... Kd5 {[%clk 0:00:37.9]} 57. Rd7+ {[%clk 0:00:12.9]} 57... Kc6 {[%clk
0:00:37.8]} 58. Rg7 {[%clk 0:00:11.5]} 58... Kd5 {[%clk 0:00:37.6]} 59. Rg8
{[%clk 0:00:10.5]} 59... c4+ {[%clk 0:00:37.5]} 60. Kd2 {[%clk 0:00:10.6]} 60...
Ke4 {[%clk 0:00:35.2]} 61. Ke2 {[%clk 0:00:08.3]} 61... c3 {[%clk 0:00:35.2]}
62. Rc8 {[%clk 0:00:07.2]} 62... Kd4+ {[%clk 0:00:35.6]} 63. Kf3 {[%clk
0:00:06.8]} 63... Kd3 {[%clk 0:00:30.1]} 64. f5 {[%clk 0:00:06.8]} 64... gxf5
{[%clk 0:00:30.2]} 65. Kf4 {[%clk 0:00:07.4]} 65... Rg6 {[%clk 0:00:21.1]} 66.
Rd8+ {[%clk 0:00:06.4]} 66... Ke2 {[%clk 0:00:20]} 67. Re8+ {[%clk 0:00:06.3]}
67... Kd1 {[%clk 0:00:19.2]} 68. Rd8+ {[%clk 0:00:06.2]} 68... Kc1 {[%clk
0:00:19.2]} 69. Rd3 {[%clk 0:00:03.8]} 69... c2 {[%clk 0:00:19.3]} 70. Kxf5
{[%clk 0:00:03.8]} 70... Rg4 {[%clk 0:00:19]} 0-1

[Event "*** SCC Grand Prix: Titled Tuesday Blitz"]
[Site "Chess.com"]
[Date "2020.08.04"]
[Round "1"]
[White "kleopl"]
[Black "Robert_Chessmood"]
[Result "0-1"]
[WhiteElo "2464"]
[BlackElo "2971"]
[TimeControl "180+1"]
[EndTime "13:54:27 PDT"]
[Termination "Robert_Chessmood won by resignation"]

1. c4 {[%clk 0:03:00.9]} 1... e5 {[%clk 0:02:59.6]} 2. Nc3 {[%clk 0:02:59.1]}
2... Bb4 {[%clk 0:02:58.4]} 3. Nd5 {[%clk 0:02:58.6]} 3... Be7 {[%clk 0:02:57]}
4. Nf3 {[%clk 0:02:57.2]} 4... d6 {[%clk 0:02:55.7]} 5. d4 {[%clk 0:02:55.6]}
5... exd4 {[%clk 0:02:50.2]} 6. Nxd4 {[%clk 0:02:50.8]} 6... Nf6 {[%clk
0:02:49.3]} 7. Nc3 {[%clk 0:02:43.9]} 7... O-O {[%clk 0:02:45.7]} 8. g3 {[%clk
0:02:43.8]} 8... d5 {[%clk 0:02:43]} 9. cxd5 {[%clk 0:02:26.9]} 9... Nxd5 {[%clk
0:02:43.9]} 10. Bd2 {[%clk 0:02:24.8]} 10... Bf6 {[%clk 0:02:39.6]} 11. Nf3
{[%clk 0:02:19.5]} 11... Nxc3 {[%clk 0:02:35.5]} 12. Bxc3 {[%clk 0:02:19.4]}
12... Bxc3+ {[%clk 0:02:35.1]} 13. bxc3 {[%clk 0:02:19.4]} 13... Be6 {[%clk
0:02:17.5]} 14. Bg2 {[%clk 0:02:18.1]} 14... Qxd1+ {[%clk 0:02:13.7]} 15. Kxd1
{[%clk 0:02:14.7]} 15... Rd8+ {[%clk 0:02:13.6]} 16. Kc2 {[%clk 0:02:10.8]}
16... Bf5+ {[%clk 0:02:09]} 17. Kb2 {[%clk 0:02:10.5]} 17... Be4 {[%clk
0:02:09.2]} 18. Rhd1 {[%clk 0:02:08]} 18... Na6 {[%clk 0:02:08.9]} 19. Rd4
{[%clk 0:02:02.9]} 19... Bxf3 {[%clk 0:02:06.8]} 20. Bxf3 {[%clk 0:02:00.7]}
20... c6 {[%clk 0:01:51.1]} 21. Rad1 {[%clk 0:01:59.4]} 21... Re8 {[%clk
0:01:47]} 22. Rc4 {[%clk 0:01:45.9]} 22... Rad8 {[%clk 0:01:41.9]} 23. Rcd4
{[%clk 0:01:43.6]} 23... Rb8 {[%clk 0:01:36.3]} 24. e3 {[%clk 0:01:42.5]} 24...
Kf8 {[%clk 0:01:29]} 25. Ra4 {[%clk 0:01:38.9]} 25... g6 {[%clk 0:01:19.6]} 26.
Kc2 {[%clk 0:01:38.6]} 26... Re7 {[%clk 0:01:05.1]} 27. Bxc6 {[%clk 0:01:24.5]}
27... Nc5 {[%clk 0:01:05.2]} 28. Rc4 {[%clk 0:01:24.7]} 28... b6 {[%clk
0:01:03.5]} 29. Bg2 {[%clk 0:01:21.1]} 29... h5 {[%clk 0:01:02.2]} 30. Rcd4
{[%clk 0:01:19.8]} 30... Kg7 {[%clk 0:01:00.3]} 31. Rd8 {[%clk 0:01:18.3]} 31...
Rxd8 {[%clk 0:01:00]} 32. Rxd8 {[%clk 0:01:19.2]} 32... Kf6 {[%clk 0:00:55.6]}
33. c4 {[%clk 0:01:17.5]} 33... Rd7 {[%clk 0:00:50.6]} 34. Rxd7 {[%clk
0:01:16.3]} 34... Nxd7 {[%clk 0:00:51.5]} 35. h4 {[%clk 0:01:16]} 35... Ke5
{[%clk 0:00:36.9]} 36. f4+ {[%clk 0:01:07.5]} 36... Kd6 {[%clk 0:00:35.7]} 37.
e4 {[%clk 0:01:06.4]} 37... f6 {[%clk 0:00:33]} 38. Kc3 {[%clk 0:01:05.3]} 38...
Nc5 {[%clk 0:00:32.5]} 39. Bf3 {[%clk 0:01:04.7]} 39... Ke7 {[%clk 0:00:29.1]}
40. Kd4 {[%clk 0:01:02.1]} 40... Ne6+ {[%clk 0:00:20.5]} 41. Kd5 {[%clk
0:00:59.7]} 41... Kd7 {[%clk 0:00:20.9]} 42. f5 {[%clk 0:00:53.3]} 42... gxf5
{[%clk 0:00:19.6]} 43. Bxh5 {[%clk 0:00:50.6]} 43... Nc7+ {[%clk 0:00:17.4]} 44.
Kd4 {[%clk 0:00:50]} 44... fxe4 {[%clk 0:00:17.9]} 45. Kxe4 {[%clk 0:00:48.7]}
45... Ke7 {[%clk 0:00:17.4]} 46. Bg4 {[%clk 0:00:46.3]} 46... Na6 {[%clk
0:00:10.1]} 47. Kd5 {[%clk 0:00:44.8]} 47... Nb4+ {[%clk 0:00:09.5]} 48. Kd4
{[%clk 0:00:40.6]} 48... Nxa2 {[%clk 0:00:10.4]} 49. h5 {[%clk 0:00:39]} 49...
Nb4 {[%clk 0:00:09]} 50. h6 {[%clk 0:00:35]} 50... Kf7 {[%clk 0:00:09.4]} 51.
Bf5 {[%clk 0:00:35.1]} 51... a5 {[%clk 0:00:08.9]} 52. Kc3 {[%clk 0:00:34.5]}
52... Na6 {[%clk 0:00:08.5]} 53. Kd4 {[%clk 0:00:30.8]} 53... Nb4 {[%clk
0:00:06.6]} 54. g4 {[%clk 0:00:30]} 54... Na6 {[%clk 0:00:03.5]} 55. Kc3 {[%clk
0:00:29.7]} 55... Nc5 {[%clk 0:00:03.4]} 56. Kd4 {[%clk 0:00:27.6]} 56... Na6
{[%clk 0:00:03.6]} 57. Kc3 {[%clk 0:00:27.3]} 57... Nc5 {[%clk 0:00:03.4]} 58.
Kd4 {[%clk 0:00:27.5]} 58... Nb3+ {[%clk 0:00:03.2]} 59. Kc3 {[%clk 0:00:27.7]}
59... Nc1 {[%clk 0:00:02.7]} 60. Kd2 {[%clk 0:00:27.2]} 60... Na2 {[%clk
0:00:02]} 61. Kc2 {[%clk 0:00:27]} 61... Nb4+ {[%clk 0:00:02.4]} 62. Kc3 {[%clk
0:00:27.3]} 62... Nc6 {[%clk 0:00:02.2]} 63. Kd3 {[%clk 0:00:25.1]} 63... Nb4+
{[%clk 0:00:01.8]} 64. Kc3 {[%clk 0:00:24.7]} 64... Na6 {[%clk 0:00:02.7]} 65.
Kd4 {[%clk 0:00:24.4]} 65... Nc5 {[%clk 0:00:03.3]} 66. Kc3 {[%clk 0:00:21.9]}
66... Nb7 {[%clk 0:00:03.3]} 67. Kd4 {[%clk 0:00:21.7]} 67... Nd6 {[%clk
0:00:03.5]} 68. Bd3 {[%clk 0:00:20.1]} 68... Nb7 {[%clk 0:00:03.4]} 69. Kc3
{[%clk 0:00:20.1]} 69... Kg8 {[%clk 0:00:02.5]} 70. Kd4 {[%clk 0:00:18.8]} 70...
Nc5 {[%clk 0:00:03]} 71. Bc2 {[%clk 0:00:18.3]} 71... Kf7 {[%clk 0:00:03.1]} 72.
Kd5 {[%clk 0:00:18.1]} 72... a4 {[%clk 0:00:03.5]} 73. Kc6 {[%clk 0:00:13.8]}
73... a3 {[%clk 0:00:03.9]} 74. Bb1 {[%clk 0:00:14.2]} 74... Na4 {[%clk
0:00:04.2]} 75. c5 {[%clk 0:00:11.2]} 75... bxc5 {[%clk 0:00:02.6]} 76. Bc2
{[%clk 0:00:10.2]} 76... Nc3 {[%clk 0:00:02.2]} 77. Kxc5 {[%clk 0:00:10]} 77...
a2 {[%clk 0:00:02.6]} 78. Bb3+ {[%clk 0:00:10.3]} 78... Kg6 {[%clk 0:00:03.2]}
79. Bxa2 {[%clk 0:00:09]} 79... Nxa2 {[%clk 0:00:04.1]} 80. Kd4 {[%clk
0:00:08.6]} 80... Kxh6 {[%clk 0:00:04.5]} 81. Ke4 {[%clk 0:00:09.1]} 81... Kg5
{[%clk 0:00:05.4]} 82. Kf3 {[%clk 0:00:09.7]} 82... Nb4 {[%clk 0:00:05.9]} 83.
Kg3 {[%clk 0:00:10.3]} 83... Nc6 {[%clk 0:00:06.8]} 84. Kf3 {[%clk 0:00:10.6]}
84... Ne5+ {[%clk 0:00:07.7]} 85. Kg3 {[%clk 0:00:11.1]} 85... Nxg4 {[%clk
0:00:08.6]} 0-1

[Event "*** SCC Grand Prix: Titled Tuesday Blitz"]
[Site "Chess.com"]
[Date "2020.08.04"]
[Round "2"]
[White "Bastiandash"]
[Black "binbin239"]
[Result "0-1"]
[WhiteElo "2310"]
[BlackElo "2554"]
[TimeControl "180+1"]
[EndTime "13:56:56 PDT"]
[Termination "binbin239 won by resignation"]

1. d4 {[%clk 0:03:00.9]} 1... Nf6 {[%clk 0:02:59.3]} 2. Nf3 {[%clk 0:02:59.7]}
2... g6 {[%clk 0:02:59.2]} 3. Bg5 {[%clk 0:02:59.3]} 3... Ne4 {[%clk 0:02:56.9]}
4. Bf4 {[%clk 0:02:55.6]} 4... Bg7 {[%clk 0:02:54.6]} 5. Nbd2 {[%clk 0:02:54.9]}
5... d5 {[%clk 0:02:54.4]} 6. e3 {[%clk 0:02:53.1]} 6... c5 {[%clk 0:02:53.2]}
7. c3 {[%clk 0:02:39.2]} 7... O-O {[%clk 0:02:52.1]} 8. Nxe4 {[%clk 0:02:34.4]}
8... dxe4 {[%clk 0:02:51.4]} 9. Nd2 {[%clk 0:02:35.3]} 9... cxd4 {[%clk
0:02:49.2]} 10. cxd4 {[%clk 0:02:36.2]} 10... Bf5 {[%clk 0:02:47.5]} 11. Be2
{[%clk 0:02:36.2]} 11... Nc6 {[%clk 0:02:47.2]} 12. O-O {[%clk 0:02:36.7]} 12...
e5 {[%clk 0:02:47.1]} 13. dxe5 {[%clk 0:02:37.6]} 13... Nxe5 {[%clk 0:02:47.2]}
14. Qb3 {[%clk 0:02:36.4]} 14... Qxd2 {[%clk 0:02:45.1]} 0-1

[Event "*** SCC Grand Prix: Titled Tuesday Blitz"]
[Site "Chess.com"]
[Date "2020.08.04"]
[Round "2"]
[White "Justinz"]
[Black "GM_LOADING"]
[Result "0-1"]
[WhiteElo "2339"]
[BlackElo "2613"]
[TimeControl "180+1"]
[EndTime "13:57:09 PDT"]
[Termination "GM_LOADING won by resignation"]

1. e4 {[%clk 0:03:00.1]} 1... Nf6 {[%clk 0:03:00.9]} 2. e5 {[%clk 0:02:58.7]}
2... Nd5 {[%clk 0:03:01]} 3. d4 {[%clk 0:02:58.6]} 3... d6 {[%clk 0:03:01.5]} 4.
exd6 {[%clk 0:02:58.1]} 4... cxd6 {[%clk 0:03:00.7]} 5. c4 {[%clk 0:02:58.5]}
5... Nb6 {[%clk 0:03:00.2]} 6. Nc3 {[%clk 0:02:58.6]} 6... g6 {[%clk 0:03:00.8]}
7. h3 {[%clk 0:02:58.7]} 7... Bg7 {[%clk 0:03:00.9]} 8. Nf3 {[%clk 0:02:59.2]}
8... O-O {[%clk 0:03:01]} 9. Be2 {[%clk 0:02:59.2]} 9... Nc6 {[%clk 0:03:01.6]}
10. d5 {[%clk 0:02:58.6]} 10... Na5 {[%clk 0:03:00.8]} 11. Nd2 {[%clk
0:02:56.1]} 11... Bf5 {[%clk 0:03:00.5]} 12. g4 {[%clk 0:02:36.7]} 12... Bd7
{[%clk 0:02:59.8]} 13. Qc2 {[%clk 0:02:36.5]} 13... Rc8 {[%clk 0:02:59.1]} 14.
b3 {[%clk 0:02:36.4]} 14... e6 {[%clk 0:02:50]} 15. dxe6 {[%clk 0:02:35.1]}
15... fxe6 {[%clk 0:02:49.6]} 16. Bb2 {[%clk 0:02:34.9]} 16... d5 {[%clk
0:02:49.5]} 17. cxd5 {[%clk 0:02:32.3]} 17... Nxd5 {[%clk 0:02:46.5]} 18. Rc1
{[%clk 0:02:31.3]} 18... Nxc3 {[%clk 0:02:44.1]} 0-1